bitfinex/quotes_SOLUSD_20250805
["timestamp","ask_amount","ask_price","bid_price","bid_amount"]
[1754422510686,7.8269026,163.67,163.66,0.1]
[1754422510861,8.5069026,163.67,163.66,0.1]
[1754422511360,7.8269026,163.67,163.66,0.78]
[1754422511951,32.78887885,163.7,163.66,0.78]
[1754422512157,26.0,163.7,163.67,0.68]
[1754422512357,7.8269026,163.68,163.66,0.1]
[1754422513685,7.8269026,163.68,163.66,0.78]
[1754422513892,7.8269026,163.69,163.67,0.68]
[1754422514985,7.8269026,163.69,163.66,0.1]
[1754422515388,7.8269026,163.69,163.67,0.68]
[1754422515699,7.8269026,163.68,163.66,0.1]
[1754422515875,32.10846081,163.71,163.66,0.1]
[1754422516066,7.8269026,163.69,163.66,0.78]
[1754422516789,7.8269026,163.69,163.66,6.21019322]
[1754422516983,7.8269026,163.69,163.66,6.89019322]
[1754422517284,7.8269026,163.68,163.66,0.78]
[1754422517693,7.8269026,163.68,163.66,0.1]
[1754422518569,7.8269026,163.68,163.66,0.78]
[1754422519296,7.8269026,163.69,163.66,6.89015089]
[1754422519601,7.8269026,163.69,163.66,0.78]
[1754422519976,7.8269026,163.67,163.66,0.1]
[1754422520376,8.5069026,163.67,163.66,0.1]
[1754422521565,14.61675779,163.67,163.66,0.1]
[1754422523174,14.75891936,163.67,163.66,0.1]
[1754422524167,29.86513493,163.67,163.66,0.1]
[1754422524495,29.86513493,163.67,163.64,0.06]
[1754422524496,26.14216157,163.65,163.64,0.06]
[1754422524664,98.18588163,163.65,163.64,0.06]
[1754422525200,98.86588163,163.65,163.64,0.06]
[1754422525667,7.8269026,163.7,163.64,0.06]
[1754422525668,0.68,163.72,163.64,0.06]
[1754422525867,11.9007097,163.73,163.67,0.14216157]
[1754422526068,7.8269026,163.72,163.67,0.68]
[1754422526293,7.8269026,163.71,163.68,0.68]
[1754422526796,33.8269026,163.72,163.69,0.68]
[1754422527004,7.8569026,163.75,163.69,8.5069026]
[1754422527174,26.0,163.74,163.7,0.68]
[1754422527370,7.8569026,163.75,163.71,0.68]
[1754422527577,0.03,163.75,163.7,7.8269026]
[1754422527774,26.0,163.74,163.72,0.68]
[1754422527986,26.0,163.74,163.7,8.5069026]
[1754422528317,0.03,163.75,163.72,7.8269026]
[1754422528473,0.03,163.75,163.74,7.8269026]
[1754422528673,0.03,163.75,163.74,13.93414579]
[1754422528878,0.03,163.75,163.74,14.61414579]
[1754422531493,0.03,163.75,163.74,14.75630736]
[1754422533438,0.03,163.75,163.74,6.78724319]
[1754422533607,0.03,163.75,163.74,14.61414579]
[1754422536303,0.03,163.75,163.74,7.8269026]
[1754422536629,0.03,163.75,163.71,15.2702365]
[1754422536630,0.72,163.75,163.71,7.8269026]
[1754422536800,0.72,163.75,163.73,43.4]
[1754422537514,0.03,163.75,163.73,49.5075677]
[1754422537705,0.03,163.75,163.74,8.5069026]
[1754422538317,0.03,163.75,163.74,0.68]
[1754422538727,0.03,163.75,163.73,57.3344703]
[1754422539519,0.72,163.75,163.73,43.4]
[1754422540129,8.5469026,163.75,163.73,43.4]
[1754422540431,0.69,163.74,163.72,43.4]
[1754422541828,0.03,163.75,163.73,0.68]
[1754422542017,0.03,163.75,163.74,0.68]
[1754422542729,0.03,163.75,163.74,8.64906417]
[1754422542927,0.03,163.75,163.74,23.75527974]
[1754422543235,0.03,163.77,163.74,23.75527974]
[1754422543236,0.03,163.77,163.74,8.64906417]
[1754422543418,0.03,163.77,163.75,44.1]
[1754422543606,0.03,163.77,163.75,43.48]
[1754422543937,0.72,163.77,163.75,43.48]
[1754422544131,0.69,163.76,163.75,43.48]
[1754422544424,8.5169026,163.76,163.75,43.48]
[1754422544737,7.8569026,163.77,163.75,43.48]
[1754422545108,8.5469026,163.77,163.75,43.48]
[1754422545929,8.5169026,163.76,163.73,43.5]
[1754422546504,7.8269026,163.74,163.73,43.5]
[1754422548236,14.62414579,163.74,163.73,43.5]
[1754422548528,14.62414579,163.74,163.7,6.7886918]
[1754422548529,8.5169026,163.74,163.7,6.7886918]
[1754422548737,0.03,163.77,163.73,7.8269026]
[1754422549104,0.03,163.77,163.74,0.68]
[1754422549325,0.03,163.77,163.75,43.46]
[1754422549510,0.03,163.77,163.75,44.14]
[1754422550923,0.03,163.77,163.75,43.46]
[1754422551126,7.8569026,163.77,163.75,43.46]
[1754422551835,8.5469026,163.77,163.75,43.46]
[1754422552216,8.5169026,163.76,163.75,43.46]
[1754422552410,8.5169026,163.76,163.73,43.48]
[1754422552646,0.03,163.77,163.74,8.5069026]
[1754422552832,0.03,163.77,163.75,7.8269026]
[1754422553019,0.03,163.77,163.76,43.48]
[1754422553226,0.03,163.77,163.76,44.16]
[1754422553409,0.03,163.77,163.76,43.48]
[1754422553614,7.8569026,163.77,163.76,43.48]
[1754422553839,8.5469026,163.77,163.7,6.78873549]
[1754422554030,7.8269026,163.73,163.71,43.48]
[1754422554425,7.8269026,163.72,163.71,43.48]
[1754422555252,0.69,163.75,163.71,43.48]
[1754422555456,7.8269026,163.73,163.72,0.68]
[1754422555952,7.8269026,163.73,163.71,43.48]
[1754422556520,7.8269026,163.73,163.71,44.16]
[1754422557261,7.8269026,163.73,163.71,43.48]
[1754422558033,7.8269026,163.72,163.71,43.48]
[1754422558459,6.7969053,163.75,163.71,43.48]
[1754422558765,7.8269026,163.72,163.71,43.48]
[1754422559954,14.62489184,163.72,163.66,0.06]
[1754422560167,7.8269026,163.67,163.66,0.06]
[1754422563158,8.5169026,163.67,163.66,0.06]
[1754422563539,14.62675779,163.67,163.66,0.06]
[1754422564345,7.8269026,163.67,163.66,0.06]
[1754422564864,8.5169026,163.67,163.66,0.06]
[1754422565249,34.80122574,163.67,163.66,0.06]
[1754422565856,40.91108093,163.67,163.66,0.06]
[1754422566762,40.62675779,163.67,163.66,0.06]
[1754422567935,34.5169026,163.67,163.66,0.06]
[1754422568141,39.93675779,163.67,163.66,0.06]
[1754422570440,40.62675779,163.67,163.66,0.06]
[1754422571166,39.93675779,163.67,163.66,0.06]
[1754422571743,40.62675779,163.67,163.66,0.06]
[1754422573375,39.93675779,163.67,163.66,0.06]
[1754422573544,26.0,163.67,163.66,0.06]
[1754422573867,39.93675779,163.67,163.66,0.06]
[1754422575564,13.93675779,163.67,163.66,0.06]
[1754422576951,14.62675779,163.67,163.66,0.06]
[1754422578277,55.73297336,163.67,163.66,0.06]
[1754422578573,26.0,163.65,163.64,0.06]
[1754422578783,46.78816554,163.69,163.64,0.77]
[1754422578784,6.1096372,163.68,163.64,0.77]
[1754422578989,33.8269026,163.68,163.65,0.71]
[1754422579187,33.8269026,163.67,163.64,0.06]
[1754422579346,33.8269026,163.67,163.66,0.71]
[1754422579546,33.8269026,163.67,163.64,0.77]
[1754422579883,7.8269026,163.66,163.64,0.77]
[1754422580083,7.8269026,163.66,163.64,0.06]
[1754422580379,7.8269026,163.65,163.64,0.06]
[1754422581249,8.5169026,163.65,163.64,0.06]
[1754422581581,7.8269026,163.65,163.64,0.06]
[1754422583365,7.8269026,163.65,163.64,0.77]
[1754422583564,26.0,163.67,163.64,0.77]
[1754422583801,26.0,163.69,163.64,0.77]
[1754422583976,10.23058642,163.7,163.66,7.8269026]
[1754422584373,10.23058642,163.7,163.67,0.71]
[1754422584579,10.23058642,163.7,163.66,7.8269026]
[1754422584786,10.23058642,163.7,163.67,0.71]
[1754422585386,24.1662412,163.7,163.65,13.93730293]
[1754422585702,24.8562412,163.7,163.66,0.71]
[1754422586300,18.05748902,163.7,163.67,0.71]
[1754422586680,10.23058642,163.7,163.68,0.71]
[1754422586894,10.23058642,163.7,163.68,8.5369026]
[1754422587097,10.23058642,163.7,163.69,0.71]
[1754422587274,10.23058642,163.7,163.69,8.5369026]
[1754422588404,10.23058642,163.7,163.69,14.64601128]
[1754422588896,7.8269026,163.74,163.69,14.64601128]
[1754422589088,7.8269026,163.74,163.7,7.8269026]
[1754422589296,7.8269026,163.74,163.7,8.5369026]
[1754422589497,7.8269026,163.74,163.67,43.4]
[1754422589498,8.5169026,163.73,163.68,14.64636699]
[1754422589678,8.5169026,163.72,163.68,6.81946439]
[1754422589880,7.8269026,163.73,163.69,0.71]
[1754422590301,8.5169026,163.73,163.69,0.71]
[1754422590500,7.8269026,163.71,163.67,49.50974375]
[1754422590800,0.69,163.7,163.66,7.8269026]
[1754422591003,8.5169026,163.7,163.67,43.4]
[1754422591603,7.8269026,163.71,163.68,0.71]
[1754422592501,8.5169026,163.7,163.66,58.04682903]
[1754422593000,7.8269026,163.7,163.66,57.33682903]
[1754422593197,6.10836292,163.71,163.67,0.71]
[1754422593198,7.8269026,163.71,163.67,0.71]
[1754422593394,7.8269026,163.71,163.66,57.33682903]
[1754422593701,7.8269026,163.71,163.68,0.71]
[1754422594606,8.4869026,163.71,163.66,121.90682903]
[1754422594801,8.4869026,163.71,163.67,0.67]
[1754422595002,8.4869026,163.71,163.68,0.67]
[1754422595003,7.8269026,163.71,163.68,0.67]
[1754422595500,8.4869026,163.71,163.66,121.90682903]
[1754422595671,8.4869026,163.71,163.66,121.23682903]
[1754422595874,8.4869026,163.71,163.67,0.67]
[1754422596589,8.4869026,163.71,163.67,6.77983043]
[1754422597395,7.8269026,163.72,163.68,0.67]
[1754422597602,7.8269026,163.72,163.69,0.67]
[1754422598003,8.4869026,163.72,163.67,14.60673303]
[1754422598314,8.4869026,163.72,163.68,6.77932859]
[1754422598832,7.8269026,163.71,163.68,6.77932859]
[1754422599711,7.8269026,163.71,163.66,115.1269026]
[1754422600007,8.4869026,163.7,163.66,107.97]
[1754422600179,8.4869026,163.7,163.66,115.7969026]
[1754422600379,7.8269026,163.7,163.67,0.67]
[1754422601192,7.8269026,163.7,163.66,121.23705506]
[1754422601393,7.8269026,163.67,163.66,63.9]
[1754422601708,8.4869026,163.67,163.64,0.06]
[1754422601882,7.8269026,163.65,163.64,0.06]
[1754422603704,14.59750449,163.65,163.64,0.06]
[1754422604028,0.66,163.67,163.64,0.06]
[1754422604192,7.8269026,163.66,163.64,0.73]
[1754422605410,7.8269026,163.66,163.64,0.06]
[1754422605786,7.8269026,163.65,163.64,0.06]
[1754422606130,8.4869026,163.65,163.64,0.06]
[1754422606633,14.59750449,163.65,163.64,0.06]
[1754422608095,8.4869026,163.65,163.64,0.06]
[1754422608329,7.8269026,163.67,163.64,0.73]
[1754422608628,7.8269026,163.67,163.65,0.67]
[1754422609700,7.8269026,163.66,163.64,0.06]
[1754422610413,7.8269026,163.65,163.64,0.06]
[1754422610620,8.4869026,163.65,163.64,0.06]
[1754422610823,14.59750449,163.65,163.64,0.06]
[1754422611120,8.4869026,163.65,163.64,0.06]
[1754422611537,26.0,163.7,163.64,0.06]
[1754422611824,7.8269026,163.73,163.69,7.8269026]
[1754422612027,7.8269026,163.73,163.7,0.67]
[1754422612217,4.10550805,163.73,163.71,0.67]
[1754422612420,11.93189423,163.74,163.71,0.67]
[1754422612729,8.5169026,163.75,163.71,0.67]
[1754422612931,12.62164427,163.75,163.71,0.67]
[1754422613448,4.13474167,163.75,163.72,0.67]
[1754422613601,0.03,163.75,163.72,8.4969026]
[1754422613801,0.03,163.75,163.74,7.8269026]
[1754422614231,0.03,163.75,163.74,0.67]
[1754422614810,0.03,163.75,163.73,43.42]
[1754422616818,8.4869026,163.74,163.73,43.42]
[1754422617019,8.4869026,163.74,163.71,43.38]
[1754422617219,7.8269026,163.73,163.71,43.38]
[1754422617461,8.4869026,163.72,163.67,6.77972612]
[1754422617741,8.4869026,163.72,163.64,63.96]
[1754422617742,7.8269026,163.69,163.64,0.06]
[1754422617954,7.8269026,163.69,163.65,44.05]
[1754422618103,7.8269026,163.69,163.65,51.8769026]
[1754422618814,7.8269026,163.69,163.66,0.67]
[1754422619533,26.0,163.73,163.68,7.8269026]
[1754422619534,7.8269026,163.72,163.68,7.8269026]
[1754422619750,13.93419732,163.74,163.69,51.8969026]
[1754422619915,32.13699762,163.75,163.7,8.4969026]
[1754422620116,0.03,163.75,163.72,7.8269026]
[1754422620314,0.03,163.75,163.72,51.8969026]
[1754422620636,0.03,163.75,163.72,56.61118763]
[1754422620938,0.03,163.75,163.72,44.07]
[1754422621437,12.57118763,163.75,163.72,43.4]
[1754422622035,0.03,163.75,163.73,0.67]
[1754422622222,0.03,163.75,163.72,62.04915023]
[1754422622406,0.03,163.75,163.73,0.67]
[1754422623319,0.03,163.75,163.74,0.67]
[1754422623530,0.03,163.75,163.74,13.21118763]
[1754422623734,0.03,163.75,163.74,0.67]
[1754422625020,0.03,163.75,163.74,13.21118763]
[1754422625412,0.03,163.75,163.74,19.32843082]
[1754422626228,0.03,163.75,163.74,6.78724319]
[1754422626437,0.03,163.75,163.74,19.32843082]
[1754422627229,0.03,163.75,163.74,12.54118763]
[1754422627439,0.03,163.75,163.74,19.32843082]
[1754422627742,0.03,163.75,163.74,98.47680796]
[1754422628748,0.03,163.75,163.74,63.9]
[1754422629255,0.03,163.75,163.74,76.44118763]
[1754422629421,0.03,163.75,163.74,64.58]
[1754422629922,0.03,163.75,163.74,63.9]
[1754422630334,0.03,163.75,163.74,107.28]
[1754422631357,0.03,163.75,163.74,107.96]
[1754422632062,0.03,163.75,163.74,107.28]
[1754422632258,0.75,163.75,163.74,107.28]
[1754422632625,0.75,163.75,163.74,43.38]
[1754422633756,0.03,163.75,163.74,43.38]
[1754422636429,0.75,163.75,163.74,43.38]
[1754422636748,0.03,163.75,163.74,43.38]
[1754422638064,0.03,163.75,163.74,44.06]
[1754422638629,0.03,163.75,163.74,50.16724319]
[1754422639058,0.03,163.75,163.74,43.38]
[1754422640064,0.03,163.75,163.74,49.48724319]
[1754422640759,0.03,163.75,163.74,50.16724319]
[1754422641661,0.03,163.75,163.74,49.48724319]
[1754422644251,0.75,163.75,163.74,43.38]
[1754422644548,0.03,163.75,163.74,43.38]
[1754422644753,0.75,163.75,163.74,43.38]
[1754422644995,0.03,163.75,163.74,43.38]
[1754422645148,0.03,163.75,163.74,49.48724319]
[1754422645353,0.03,163.75,163.74,58.00444404]
[1754422647681,8.58720085,163.75,163.7,6.10873549]
[1754422647881,7.83720085,163.71,163.67,0.68]
[1754422648060,7.83720085,163.71,163.68,43.28]
[1754422648387,7.83720085,163.73,163.69,0.68]
[1754422648565,8.58720085,163.75,163.7,51.79720085]
[1754422648761,8.58720085,163.75,163.73,7.83720085]
[1754422648762,0.03,163.75,163.73,7.83720085]
[1754422649080,0.03,163.75,163.74,49.38724319]
[1754422650493,0.03,163.75,163.74,43.28]
[1754422650667,8.58720085,163.75,163.74,43.28]
[1754422650872,0.03,163.75,163.74,49.38724319]
[1754422652684,0.03,163.75,163.74,50.06724319]
[1754422652883,0.03,163.75,163.74,57.90444404]
[1754422653267,0.03,163.75,163.74,49.38724319]
[1754422653467,0.03,163.75,163.74,50.06724319]
[1754422655783,0.03,163.75,163.74,57.90444404]
[1754422656798,0.03,163.77,163.75,15.10621557]
[1754422657000,0.03,163.77,163.76,66.34557799]
[1754422657212,0.03,163.77,163.76,73.1620753]
[1754422657370,1e-08,163.77,163.76,73.1620753]
[1754422657569,1e-08,163.77,163.76,137.34639844]
[1754422660799,1e-08,163.77,163.76,128.79919759]
[1754422660992,1e-08,163.77,163.76,129.22487445]
[1754422661201,1e-08,163.77,163.76,137.0620753]
[1754422662267,1e-08,163.77,163.76,73.1620753]
[1754422663299,1e-08,163.77,163.76,163.34639844]
[1754422663670,1e-08,163.77,163.76,119.0920753]
[1754422663891,1e-08,163.77,163.76,162.3320753]
[1754422664071,1e-08,163.77,163.76,57.18369816]
[1754422665377,1e-08,163.77,163.76,49.34649731]
[1754422665583,0.67000001,163.77,163.76,49.34649731]
[1754422665988,1e-08,163.77,163.76,49.34649731]
[1754422666184,1e-08,163.77,163.76,58.03585973]
[1754422667087,1e-08,163.77,163.76,57.32585973]
[1754422667595,0.67000001,163.77,163.76,49.36649731]
[1754422669491,8.50720086,163.77,163.76,43.26]
[1754422669695,8.50720086,163.77,163.72,6.10798924]
[1754422670002,7.83720085,163.74,163.73,43.26]
[1754422670504,8.50720085,163.74,163.73,43.26]
[1754422670798,8.50720085,163.74,163.73,49.36761619]
[1754422671005,1e-08,163.77,163.73,57.91481704]
[1754422671231,1e-08,163.77,163.74,0.71]
[1754422671420,1e-08,163.77,163.75,43.26]
[1754422671627,1e-08,163.77,163.75,51.09720085]
[1754422671822,1e-08,163.77,163.76,8.54720085]
[1754422672978,1e-08,163.77,163.76,14.65369816]
[1754422675218,8.50720086,163.77,163.71,90.61]
[1754422675430,8.50720085,163.76,163.72,43.28]
[1754422675590,0.67,163.75,163.72,43.28]
[1754422675903,7.83720085,163.76,163.72,43.99]
[1754422676208,8.50720085,163.76,163.72,50.09798924]
[1754422678000,7.83720086,163.77,163.72,72.49516321]
[1754422678215,8.50720086,163.77,163.73,0.71]
[1754422678380,8.50720086,163.77,163.74,43.28]
[1754422678585,1e-08,163.77,163.75,8.54720085]
[1754422678809,1e-08,163.77,163.76,43.28]
[1754422680017,0.67000001,163.77,163.76,49.38649731]
[1754422680389,0.67000001,163.77,163.76,43.28]
[1754422680585,8.50720086,163.77,163.76,43.28]
[1754422683322,8.50720086,163.77,163.74,6.10697764]
[1754422683323,0.67000001,163.77,163.74,43.28]
[1754422683629,7.83720085,163.75,163.74,43.28]
[1754422683806,7.83720085,163.75,163.68,23.82022894]
[1754422683807,8.49720085,163.75,163.69,6.10910868]
[1754422684010,7.83720085,163.73,163.7,43.28]
[1754422684215,7.83720085,163.73,163.72,6.10798924]
[1754422684424,7.83720085,163.73,163.72,49.38798924]
[1754422684626,7.83720085,163.74,163.72,49.38798924]
[1754422685131,7.83720086,163.77,163.73,8.54720085]
[1754422685327,7.83720086,163.77,163.75,7.83720085]
[1754422685328,1e-08,163.77,163.75,7.83720085]
[1754422685529,1e-08,163.77,163.76,43.28]
[1754422686038,8.49720086,163.77,163.76,43.3]
[1754422686264,1e-08,163.77,163.76,49.40649731]
[1754422686539,1e-08,163.77,163.76,43.3]
[1754422686707,7.83720086,163.77,163.76,43.3]
[1754422687040,8.49720086,163.77,163.76,43.3]
[1754422688941,7.83720086,163.77,163.76,43.3]
[1754422691119,8.49720086,163.77,163.76,43.3]
[1754422692446,7.83720086,163.77,163.76,49.40649731]
[1754422692610,1e-08,163.77,163.76,50.11649731]
[1754422693327,1e-08,163.77,163.76,43.3]
[1754422693522,0.66000001,163.77,163.76,43.3]
[1754422693713,8.49720086,163.77,163.75,0.06]
[1754422693923,8.49720086,163.77,163.76,43.32]
[1754422696222,14.60339924,163.77,163.75,0.06]
[1754422696423,14.60369816,163.76,163.75,0.06]
[1754422696824,8.49720085,163.76,163.75,0.06]
[1754422697139,14.60369816,163.76,163.75,0.06]
[1754422697339,8.49720085,163.76,163.75,0.06]
[1754422697843,14.60369816,163.76,163.75,0.06]
[1754422698022,18.71132441,163.76,163.75,0.06]
[1754422698218,44.71132441,163.76,163.75,0.06]
[1754422699350,44.85348598,163.76,163.75,0.06]
[1754422699735,38.6048271,163.76,163.75,0.06]
[1754422700628,44.71132441,163.76,163.75,0.06]
[1754422700827,26.0,163.73,163.66,0.06]
[1754422701031,7.83720085,163.67,163.66,0.06]
[1754422702731,7.83720085,163.67,163.66,0.77]
[1754422702935,7.83720085,163.67,163.66,0.06]
[1754422704854,7.83720085,163.68,163.66,0.77]
[1754422705824,7.83720085,163.67,163.66,0.06]
[1754422706061,8.49720085,163.67,163.66,0.06]
[1754422707940,40.60705604,163.67,163.66,0.06]
[1754422709129,34.49720085,163.67,163.66,0.06]
[1754422709431,33.83720085,163.67,163.66,0.06]
[1754422710257,7.83720085,163.67,163.66,0.06]
[1754422710637,8.49720085,163.67,163.66,0.06]
[1754422711466,7.83720085,163.67,163.66,0.77]
[1754422711933,7.83720085,163.68,163.66,0.77]
[1754422712138,49.1209063,163.72,163.66,0.77]
[1754422712444,7.83720085,163.68,163.67,0.71]
[1754422712654,26.0,163.71,163.67,0.71]
[1754422712655,26.66,163.71,163.67,0.71]
[1754422712861,7.83720085,163.69,163.67,0.71]
[1754422713254,7.83720085,163.69,163.68,0.71]
[1754422713851,26.0,163.72,163.68,6.81946138]
[1754422714067,7.83720085,163.71,163.68,6.10946138]
[1754422714275,7.83720085,163.71,163.68,6.78946138]
[1754422714879,33.83720085,163.72,163.69,0.68]
[1754422715083,33.83720085,163.72,163.68,6.10946138]
[1754422715257,7.83720085,163.71,163.68,6.78946138]
[1754422715452,7.83720085,163.72,163.69,0.68]
[1754422715763,7.83720085,163.72,163.68,6.10946138]
[1754422715764,0.69,163.74,163.7,0.68]
[1754422715765,7.83720085,163.73,163.7,0.68]
[1754422716552,7.83720085,163.74,163.71,0.68]
[1754422717283,8.52720085,163.74,163.69,51.83720085]
[1754422717657,8.52720085,163.74,163.7,6.78873549]
[1754422717858,7.83720085,163.72,163.69,49.42900719]
[1754422718062,7.83720085,163.72,163.69,50.10900719]
[1754422718382,7.83720085,163.74,163.7,0.68]
[1754422718779,33.83720085,163.76,163.71,8.51720085]
[1754422719077,1e-08,163.77,163.69,64.70177889]
[1754422719078,7.83720086,163.77,163.72,8.51720085]
[1754422719375,7.83720086,163.77,163.73,43.98]
[1754422719580,7.83720086,163.77,163.73,50.08752113]
[1754422719764,8.52720086,163.77,163.73,50.08752113]
[1754422719966,7.83720086,163.77,163.73,50.08752113]
[1754422720175,1e-08,163.77,163.74,0.68]
[1754422720389,1e-08,163.77,163.73,57.24472198]
[1754422720685,1e-08,163.77,163.74,0.68]
[1754422721188,1e-08,163.77,163.73,49.40752113]
[1754422721489,0.69000001,163.77,163.73,57.92472198]
[1754422721686,1e-08,163.77,163.74,8.51720085]
[1754422721885,1e-08,163.77,163.75,0.68]
[1754422722390,1e-08,163.77,163.76,0.68]
[1754422723593,1e-08,163.77,163.76,14.62369816]
[1754422724095,1e-08,163.77,163.76,30.15639844]
[1754422725368,1e-08,163.77,163.76,73.45639844]
[1754422728896,1e-08,163.77,163.76,73.1720753]
[1754422729770,1e-08,163.77,163.76,73.45639844]
[1754422730182,1e-08,163.77,163.76,163.35639844]
[1754422730598,0.03,163.79,163.77,0.28432314]
[1754422730776,0.03,163.79,163.78,93.24047629]
[1754422730971,1e-08,163.84,163.79,15.53270028]
[1754422731190,1e-08,163.84,163.83,7.83720085]
[1754422731392,1e-08,163.84,163.83,51.09720085]
[1754422732605,1e-08,163.84,163.83,51.77720085]
[1754422733306,1e-08,163.84,163.83,57.88108902]
[1754422733875,1e-08,163.84,163.83,57.20108902]
[1754422734800,1e-08,163.84,163.83,57.88108902]
[1754422735376,1e-08,163.84,163.83,57.20108902]
[1754422736377,1e-08,163.84,163.83,57.88108902]
[1754422736591,1e-08,163.84,163.83,57.20108902]
[1754422737186,1e-08,163.84,163.83,57.88108902]
[1754422740290,1e-08,163.84,163.83,58.02325059]
[1754422741397,1e-08,163.84,163.83,137.3137893]
[1754422741712,0.03,163.86,163.85,26.0]
[1754422741913,0.03,163.88,163.86,23.36990113]
[1754422742207,0.2,163.89,163.88,41.53270028]
[1754422742385,0.2,163.89,163.88,49.98010371]
[1754422742580,0.2,163.91,163.88,50.66010371]
[1754422742790,0.2,163.91,163.9,23.08557799]
[1754422743218,0.2,163.91,163.9,23.76557799]
[1754422744220,0.2,163.91,163.9,6.10128126]
[1754422744516,0.86,163.91,163.9,43.2]
[1754422747001,0.2,163.91,163.9,43.2]
[1754422747922,0.86,163.91,163.9,43.2]
[1754422749515,8.69720085,163.91,163.9,43.2]
[1754422750416,14.79810988,163.91,163.9,43.2]
[1754422750595,0.86,163.91,163.9,43.2]
[1754422751498,14.79810988,163.91,163.9,43.2]
[1754422751695,14.79810988,163.91,163.88,63.9]
[1754422751897,8.49720085,163.9,163.89,43.14]
[1754422752999,8.49720085,163.9,163.88,43.22]
[1754422753215,0.2,163.91,163.88,43.22]
[1754422753411,8.03720085,163.91,163.88,43.91]
[1754422753730,8.69720085,163.91,163.88,43.22]
[1754422754412,0.2,163.91,163.88,50.01202069]
[1754422754812,0.2,163.91,163.88,43.91]
[1754422755219,0.86,163.91,163.88,43.91]
[1754422755417,0.86,163.91,163.88,43.22]
[1754422756821,0.86,163.91,163.88,0.06]
[1754422756822,7.83720085,163.89,163.88,0.06]
[1754422757012,14.59885439,163.89,163.88,0.06]
[1754422759010,40.59885439,163.89,163.88,0.06]
[1754422759721,40.74101596,163.89,163.88,0.06]
[1754422761420,40.59885439,163.89,163.88,0.06]
[1754422762205,40.88317753,163.89,163.88,0.06]
[1754422763532,32.10165354,163.89,163.88,0.06]
[1754422763734,39.93885439,163.89,163.88,0.06]
[1754422764535,40.59885439,163.89,163.88,0.06]
[1754422765809,6.10143882,163.9,163.88,0.06]
[1754422766014,7.83720085,163.89,163.88,0.06]
[1754422766543,8.49720085,163.89,163.88,0.06]
[1754422766710,7.83720085,163.89,163.88,0.06]
[1754422767614,7.83720085,163.89,163.88,0.75]
[1754422768631,7.83720085,163.89,163.88,0.06]
[1754422769941,6.96104878,163.91,163.88,0.06]
[1754422770143,7.83720085,163.89,163.88,0.06]
[1754422771633,8.49720085,163.89,163.88,0.06]
[1754422771824,33.80139357,163.89,163.88,0.06]
[1754422772620,0.14216157,163.88,163.81,0.69]
[1754422772830,7.83720085,163.82,163.81,0.69]
[1754422773140,7.83720085,163.83,163.81,6.79463341]
[1754422773342,7.83720085,163.83,163.8,49.22485167]
[1754422773643,7.83720085,163.81,163.8,43.81]
[1754422773821,7.83720085,163.82,163.8,43.81]
[1754422774020,7.83720085,163.82,163.8,43.12]
[1754422774233,7.83720085,163.82,163.81,0.66]
[1754422775853,7.83720085,163.82,163.8,43.12]
[1754422776216,7.83720085,163.82,163.8,43.78]
[1754422777240,7.83720085,163.81,163.8,43.78]
[1754422778143,7.83720085,163.81,163.8,49.8850061]
[1754422778648,7.83720085,163.81,163.8,43.78]
[1754422780831,7.83720085,163.81,163.8,43.12]
[1754422781237,7.83720085,163.81,163.8,43.78]
[1754422781615,7.83720085,163.81,163.8,43.12]